[Event "Titled Tuesday Blitz April 11 Early 2023"]
[White "Savitha Shri B"]
[Black "Kiseleva, Arina"]
[WhiteFideId "35061887"]
[BlackFideId "4164989"]
[WhiteElo "2191"]
[BlackElo "1708"]
[Result "0-1"]
[Round "04"]
[TimeControl "180+2"]
[Date "2023.04.11"]
[WhiteClock "0:00:16"]
[BlackClock "0:00:27"]

1. d4 {[%clk 0:02:53]}  Nf6 {[%clk 0:02:58]} 2. c4 {[%clk 0:02:53]}  e6 {[%clk 0:02:58]} 3. Nc3 {[%clk 0:02:52]}  Bb4 {[%clk 0:02:58]} 4. Qc2 {[%clk 0:02:52]}  O-O {[%clk 0:02:58]} 5. e4 {[%clk 0:02:52]}  d6 {[%clk 0:02:57]} 6. Nf3 {[%clk 0:02:52]}  Nbd7 {[%clk 0:02:57]} 7. Bd3 {[%clk 0:02:52]}  e5 {[%clk 0:02:56]} 8. d5 {[%clk 0:02:51]}  a5 {[%clk 0:02:54]} 9. O-O {[%clk 0:02:51]}  Bxc3 {[%clk 0:02:52]} 10. bxc3 {[%clk 0:02:49]}  Nc5 {[%clk 0:02:51]} 11. Ba3 {[%clk 0:02:48]}  Nfd7 {[%clk 0:02:46]} 12. Nd2 {[%clk 0:02:46]}  Nxd3 {[%clk 0:02:41]} 13. Qxd3 {[%clk 0:02:44]}  b6 {[%clk 0:02:41]} 14. f4 {[%clk 0:02:44]}  exf4 {[%clk 0:02:38]} 15. Rxf4 {[%clk 0:02:42]}  Ne5 {[%clk 0:02:34]} 16. Qe2 {[%clk 0:02:42]}  Ba6 {[%clk 0:02:32]} 17. Raf1 {[%clk 0:02:41]}  f6 {[%clk 0:02:26]} 18. h4 {[%clk 0:02:38]}  Qe8 {[%clk 0:02:01]} 19. h5 {[%clk 0:02:34]}  Qa4 {[%clk 0:01:52]} 20. Bc1 {[%clk 0:02:22]}  Nxc4 {[%clk 0:01:49]} 21. Qg4 {[%clk 0:02:02]}  Ne5 {[%clk 0:01:42]} 22. Qe6+ {[%clk 0:01:59]}  Kh8 {[%clk 0:01:32]} 23. h6 {[%clk 0:01:52]}  Bxf1 {[%clk 0:01:30]} 24. hxg7+ {[%clk 0:01:51]}  Kxg7 {[%clk 0:01:29]} 25. Nf3 {[%clk 0:01:11]}  Be2 {[%clk 0:01:13]} 26. Nxe5 {[%clk 0:00:58]}  dxe5 {[%clk 0:01:04]} 27. Rh4 {[%clk 0:00:27]}  Qd1+ {[%clk 0:00:41]} 28. Kh2 {[%clk 0:00:27]}  h5 {[%clk 0:00:39]} 29. Ba3 {[%clk 0:00:19]}  Rf7 {[%clk 0:00:35]} 30. Be7 {[%clk 0:00:20]}  Bg4 {[%clk 0:00:27]} 31. Bxf6+ {[%clk 0:00:16]}  Rxf6 {[%clk 0:00:27]} 0-1


[Site "https://www.chess.com"]

[Event "Titled Tuesday Blitz April 11 Early 2023"]
[White "Ruge, Edison"]
[Black "Zacurdajev, Dmitry"]
[WhiteFideId "4401000"]
[BlackFideId "4196309"]
[WhiteElo "2175"]
[BlackElo "2189"]
[Result "1-0"]
[Round "04"]
[TimeControl "180+2"]
[Date "2023.04.11"]
[WhiteClock "0:01:56"]
[BlackClock "0:01:32"]

1. e4 {[%clk 0:03:00]}  c6 {[%clk 0:02:59]} 2. d3 {[%clk 0:02:55]}  d5 {[%clk 0:03:00]} 3. Nd2 {[%clk 0:02:56]}  e6 {[%clk 0:02:59]} 4. Ngf3 {[%clk 0:02:56]}  Nf6 {[%clk 0:03:00]} 5. g3 {[%clk 0:02:57]}  Be7 {[%clk 0:02:59]} 6. Bg2 {[%clk 0:02:57]}  O-O {[%clk 0:02:58]} 7. O-O {[%clk 0:02:58]}  c5 {[%clk 0:02:57]} 8. Re1 {[%clk 0:02:58]}  Nc6 {[%clk 0:02:57]} 9. c3 {[%clk 0:02:58]}  b5 {[%clk 0:02:55]} 10. e5 {[%clk 0:02:56]}  Nd7 {[%clk 0:02:54]} 11. Qe2 {[%clk 0:02:57]}  a5 {[%clk 0:02:53]} 12. Nf1 {[%clk 0:02:58]}  b4 {[%clk 0:02:52]} 13. h4 {[%clk 0:02:58]}  bxc3 {[%clk 0:02:49]} 14. bxc3 {[%clk 0:02:58]}  Ba6 {[%clk 0:02:46]} 15. Bf4 {[%clk 0:02:57]}  Rb8 {[%clk 0:02:46]} 16. Ne3 {[%clk 0:02:47]}  Qb6 {[%clk 0:02:44]} 17. Rab1 {[%clk 0:02:40]}  Qxb1 {[%clk 0:02:43]} 18. Rxb1 {[%clk 0:02:36]}  Rxb1+ {[%clk 0:02:44]} 19. Kh2 {[%clk 0:02:36]}  Rfb8 {[%clk 0:02:44]} 20. Nxd5 {[%clk 0:02:34]}  exd5 {[%clk 0:02:41]} 21. e6 {[%clk 0:02:29]}  R8b2 {[%clk 0:02:21]} 22. Qe3 {[%clk 0:02:27]}  Nf8 {[%clk 0:01:43]} 23. exf7+ {[%clk 0:02:16]}  Kxf7 {[%clk 0:01:44]} 24. Ng5+ {[%clk 0:02:15]}  Bxg5 {[%clk 0:01:44]} 25. Bxd5+ {[%clk 0:02:13]}  Kg6 {[%clk 0:01:38]} 26. Qe8+ {[%clk 0:02:06]}  Kf6 {[%clk 0:01:35]} 27. Qxc6+ {[%clk 0:02:04]}  Ke7 {[%clk 0:01:32]} 28. Bxg5# {[%clk 0:01:56]} 1-0


[Site "https://www.chess.com"]

[Event "Titled Tuesday Blitz April 11 Early 2023"]
[White "mohsengabr2002"]
[Black "Sailer, Mike"]
[BlackFideId "2012901"]
[WhiteElo "2442"]
[BlackElo "2109"]
[Result "0-1"]
[Round "04"]
[TimeControl "180+2"]
[Date "2023.04.11"]
[WhiteClock "0:00:01"]
[BlackClock "0:00:03"]

1. e4 {[%clk 0:02:59]}  d5 {[%clk 0:02:56]} 2. exd5 {[%clk 0:02:51]}  Qxd5 {[%clk 0:02:56]} 3. Nc3 {[%clk 0:02:49]}  Qd6 {[%clk 0:02:56]} 4. Nf3 {[%clk 0:02:48]}  Nf6 {[%clk 0:02:56]} 5. d4 {[%clk 0:02:48]}  c6 {[%clk 0:02:56]} 6. Bg5 {[%clk 0:02:45]}  Bg4 {[%clk 0:02:53]} 7. Be2 {[%clk 0:02:45]}  e6 {[%clk 0:02:53]} 8. Qd2 {[%clk 0:02:44]}  Be7 {[%clk 0:02:50]} 9. O-O-O {[%clk 0:02:42]}  Nbd7 {[%clk 0:02:50]} 10. Bf4 {[%clk 0:02:41]}  Qb4 {[%clk 0:02:49]} 11. a3 {[%clk 0:02:40]}  Qa5 {[%clk 0:02:48]} 12. Kb1 {[%clk 0:02:40]}  Nb6 {[%clk 0:02:35]} 13. h3 {[%clk 0:02:36]}  Bxf3 {[%clk 0:02:31]} 14. Bxf3 {[%clk 0:02:36]}  Nc4 {[%clk 0:02:06]} 15. Qd3 {[%clk 0:02:35]}  Nd6 {[%clk 0:01:41]} 16. g4 {[%clk 0:02:22]}  h6 {[%clk 0:01:28]} 17. Bd2 {[%clk 0:02:21]}  Qd8 {[%clk 0:01:18]} 18. h4 {[%clk 0:02:20]}  Nd5 {[%clk 0:01:15]} 19. Nxd5 {[%clk 0:02:19]}  cxd5 {[%clk 0:01:15]} 20. g5 {[%clk 0:02:19]}  hxg5 {[%clk 0:01:02]} 21. hxg5 {[%clk 0:02:18]}  Rxh1 {[%clk 0:01:01]} 22. Rxh1 {[%clk 0:02:19]}  Kd7 {[%clk 0:01:01]} 23. g6 {[%clk 0:02:15]}  f6 {[%clk 0:00:58]} 24. Rh7 {[%clk 0:02:14]}  Bf8 {[%clk 0:00:57]} 25. Qb3 {[%clk 0:02:03]}  Qb6 {[%clk 0:00:55]} 26. Qxb6 {[%clk 0:01:58]}  axb6 {[%clk 0:00:56]} 27. b3 {[%clk 0:01:58]}  Rxa3 {[%clk 0:00:50]} 28. Rh8 {[%clk 0:01:52]}  Ra8 {[%clk 0:00:45]} 29. Bb4 {[%clk 0:01:50]}  Re8 {[%clk 0:00:42]} 30. Be2 {[%clk 0:01:46]}  Rc8 {[%clk 0:00:30]} 31. Kb2 {[%clk 0:01:40]}  Be7 {[%clk 0:00:22]} 32. Rh7 {[%clk 0:01:33]}  Rg8 {[%clk 0:00:21]} 33. f3 {[%clk 0:01:26]}  f5 {[%clk 0:00:20]} 34. Bd2 {[%clk 0:01:21]}  Bf6 {[%clk 0:00:18]} 35. c3 {[%clk 0:01:22]}  Nc8 {[%clk 0:00:12]} 36. Bb5+ {[%clk 0:01:20]}  Kd8 {[%clk 0:00:08]} 37. Bf4 {[%clk 0:01:18]}  Ne7 {[%clk 0:00:07]} 38. Ka3 {[%clk 0:01:00]}  Nxg6 {[%clk 0:00:08]} 39. Be3 {[%clk 0:00:58]}  Ne7 {[%clk 0:00:06]} 40. f4 {[%clk 0:00:54]}  g5 {[%clk 0:00:05]} 41. fxg5 {[%clk 0:00:53]}  Bxg5 {[%clk 0:00:06]} 42. Bf2 {[%clk 0:00:52]}  Bf6 {[%clk 0:00:05]} 43. Rh6 {[%clk 0:00:50]}  Bg5 {[%clk 0:00:03]} 44. Rxe6 {[%clk 0:00:49]}  Bd2 {[%clk 0:00:02]} 45. c4 {[%clk 0:00:44]}  dxc4 {[%clk 0:00:02]} 46. Bh4 {[%clk 0:00:42]}  Bg5 {[%clk 0:00:02]} 47. Bxg5 {[%clk 0:00:39]}  Rxg5 {[%clk 0:00:02]} 48. bxc4 {[%clk 0:00:32]}  Rg6 {[%clk 0:00:03]} 49. Re5 {[%clk 0:00:28]}  Rf6 {[%clk 0:00:03]} 50. Ba4 {[%clk 0:00:11]}  f4 {[%clk 0:00:04]} 51. Re1 {[%clk 0:00:09]}  f3 {[%clk 0:00:05]} 52. Rf1 {[%clk 0:00:10]}  f2 {[%clk 0:00:05]} 53. Bc2 {[%clk 0:00:08]}  Ng8 {[%clk 0:00:05]} 54. Kb3 {[%clk 0:00:07]}  Nh6 {[%clk 0:00:06]} 55. Bd3 {[%clk 0:00:07]}  Ng4 {[%clk 0:00:06]} 56. Kc3 {[%clk 0:00:03]}  Ne3 {[%clk 0:00:06]} 57. Rb1 {[%clk 0:00:03]}  f1=Q {[%clk 0:00:06]} 58. Bxf1 {[%clk 0:00:04]}  Rxf1 {[%clk 0:00:07]} 59. Rxb6 {[%clk 0:00:03]}  Rf3 {[%clk 0:00:04]} 60. Kb4 {[%clk 0:00:02]}  Nc2+ {[%clk 0:00:03]} 61. Kc5 {[%clk 0:00:02]}  Rf5+ {[%clk 0:00:04]} 62. d5 {[%clk 0:00:02]}  Kc7 {[%clk 0:00:03]} 63. Rh6 {[%clk 0:00:01]}  Rf7 {[%clk 0:00:03]} 0-1


[Site "https://www.chess.com"]

[Event "Titled Tuesday Blitz April 11 Early 2023"]
[White "Semenova, Alina"]
[Black "Zhukova, Natalia"]
[WhiteFideId "24113875"]
[BlackFideId "14101513"]
[WhiteElo "1833"]
[BlackElo "2297"]
[Result "1-0"]
[Round "04"]
[TimeControl "180+2"]
[Date "2023.04.11"]
[WhiteClock "0:00:20"]
[BlackClock "0:00:03"]

1. e4 {[%clk 0:03:00]}  e6 {[%clk 0:02:57]} 2. d4 {[%clk 0:02:57]}  d5 {[%clk 0:02:58]} 3. Nc3 {[%clk 0:02:55]}  Bb4 {[%clk 0:02:56]} 4. e5 {[%clk 0:02:52]}  c5 {[%clk 0:02:55]} 5. a3 {[%clk 0:02:49]}  Bxc3+ {[%clk 0:02:55]} 6. bxc3 {[%clk 0:02:46]}  Ne7 {[%clk 0:02:56]} 7. Bd3 {[%clk 0:02:44]}  Bd7 {[%clk 0:02:48]} 8. Qg4 {[%clk 0:02:43]}  Ng6 {[%clk 0:02:22]} 9. h4 {[%clk 0:02:40]}  c4 {[%clk 0:02:21]} 10. h5 {[%clk 0:02:21]}  cxd3 {[%clk 0:01:07]} 11. hxg6 {[%clk 0:02:18]}  fxg6 {[%clk 0:01:07]} 12. Rxh7 {[%clk 0:02:13]}  Rxh7 {[%clk 0:01:07]} 13. Qxg6+ {[%clk 0:02:13]}  Kf8 {[%clk 0:01:05]} 14. Qxh7 {[%clk 0:02:13]}  Nc6 {[%clk 0:00:49]} 15. cxd3 {[%clk 0:01:57]}  Qe8 {[%clk 0:00:17]} 16. Nf3 {[%clk 0:01:49]}  Ne7 {[%clk 0:00:16]} 17. a4 {[%clk 0:01:27]}  Qg6 {[%clk 0:00:14]} 18. Qxg6 {[%clk 0:01:22]}  Nxg6 {[%clk 0:00:14]} 19. Ba3+ {[%clk 0:01:22]}  Kg8 {[%clk 0:00:12]} 20. Bc1 {[%clk 0:01:03]}  Rc8 {[%clk 0:00:11]} 21. Bd2 {[%clk 0:01:00]}  a5 {[%clk 0:00:11]} 22. Ke2 {[%clk 0:00:51]}  b6 {[%clk 0:00:11]} 23. Rb1 {[%clk 0:00:33]}  Rb8 {[%clk 0:00:10]} 24. Ra1 {[%clk 0:00:31]}  Kf7 {[%clk 0:00:08]} 25. Ng5+ {[%clk 0:00:27]}  Ke8 {[%clk 0:00:09]} 26. Nh3 {[%clk 0:00:25]}  Ne7 {[%clk 0:00:08]} 27. Nf4 {[%clk 0:00:23]}  Nc8 {[%clk 0:00:06]} 28. c4 {[%clk 0:00:19]}  dxc4 {[%clk 0:00:03]} 29. dxc4 {[%clk 0:00:20]}  Ne7 {[%clk 0:00:03]} 30. Rb1 {[%clk 0:00:20]} 1-0


[Site "https://www.chess.com"]

[Event "Titled Tuesday Blitz April 11 Early 2023"]
[White "Andrews, Todd"]
[Black "Kaidanov, Gregory"]
[WhiteFideId "2012456"]
[BlackFideId "2008564"]
[WhiteElo "2325"]
[BlackElo "2547"]
[Result "0-1"]
[Round "04"]
[TimeControl "180+2"]
[Date "2023.04.11"]
[WhiteClock "0:00:01"]
[BlackClock "0:01:10"]

1. e4 {[%clk 0:03:00]}  e5 {[%clk 0:02:59]} 2. Nf3 {[%clk 0:03:00]}  Nc6 {[%clk 0:02:59]} 3. d4 {[%clk 0:03:01]}  exd4 {[%clk 0:02:59]} 4. Nxd4 {[%clk 0:03:01]}  Nf6 {[%clk 0:02:59]} 5. Nxc6 {[%clk 0:03:01]}  bxc6 {[%clk 0:03:00]} 6. e5 {[%clk 0:03:02]}  Qe7 {[%clk 0:03:00]} 7. Qe2 {[%clk 0:03:02]}  Nd5 {[%clk 0:03:00]} 8. c4 {[%clk 0:03:01]}  Nb6 {[%clk 0:02:55]} 9. h4 {[%clk 0:03:01]}  Qe6 {[%clk 0:02:53]} 10. Nd2 {[%clk 0:02:31]}  a5 {[%clk 0:02:52]} 11. Rh3 {[%clk 0:02:20]}  Ba6 {[%clk 0:02:51]} 12. a3 {[%clk 0:02:12]}  a4 {[%clk 0:02:47]} 13. h5 {[%clk 0:02:12]}  Be7 {[%clk 0:02:31]} 14. h6 {[%clk 0:02:10]}  g6 {[%clk 0:02:30]} 15. f4 {[%clk 0:01:42]}  O-O {[%clk 0:02:25]} 16. Rc3 {[%clk 0:01:27]}  f6 {[%clk 0:02:19]} 17. exf6 {[%clk 0:01:17]}  Qxf6 {[%clk 0:02:19]} 18. Ne4 {[%clk 0:01:14]}  Qf7 {[%clk 0:02:19]} 19. Be3 {[%clk 0:01:03]}  d5 {[%clk 0:02:06]} 20. Nd2 {[%clk 0:00:30]}  Bh4+ {[%clk 0:02:02]} 21. Kd1 {[%clk 0:00:27]}  Rae8 {[%clk 0:01:56]} 22. Qg4 {[%clk 0:00:23]}  Bf6 {[%clk 0:01:55]} 23. Bc5 {[%clk 0:00:12]}  Bxc3 {[%clk 0:01:52]} 24. bxc3 {[%clk 0:00:13]}  Qxf4 {[%clk 0:01:45]} 25. Qh3 {[%clk 0:00:10]}  Bc8 {[%clk 0:01:37]} 26. Qd3 {[%clk 0:00:07]}  Bg4+ {[%clk 0:01:34]} 27. Kc1 {[%clk 0:00:06]}  Bf5 {[%clk 0:01:30]} 28. Qd4 {[%clk 0:00:03]}  Qxd4 {[%clk 0:01:18]} 29. cxd4 {[%clk 0:00:04]}  Re1+ {[%clk 0:01:18]} 30. Kb2 {[%clk 0:00:04]}  Rxa1 {[%clk 0:01:17]} 31. Kxa1 {[%clk 0:00:05]}  Re8 {[%clk 0:01:17]} 32. cxd5 {[%clk 0:00:02]}  Re1+ {[%clk 0:01:13]} 33. Kb2 {[%clk 0:00:01]}  Rd1 {[%clk 0:01:13]} 34. Kc3 {[%clk 0:00:01]}  Nxd5+ {[%clk 0:01:11]} 35. Kc4 {[%clk 0:00:01]}  Rxd2 {[%clk 0:01:10]} 0-1


[Site "https://www.chess.com"]

[Event "Titled Tuesday Blitz April 11 Early 2023"]
[White "Kornyukov, Alexey"]
[Black "Lehtosaari, Mauri"]
[WhiteFideId "4150457"]
[BlackFideId "501999"]
[WhiteElo "2352"]
[BlackElo "2520"]
[Result "0-1"]
[Round "04"]
[TimeControl "180+2"]
[Date "2023.04.11"]
[WhiteClock "0:00:02"]
[BlackClock "0:00:08"]

1. e4 {[%clk 0:03:00]}  d5 {[%clk 0:02:52]} 2. exd5 {[%clk 0:02:58]}  Qxd5 {[%clk 0:02:53]} 3. Nc3 {[%clk 0:02:57]}  Qd8 {[%clk 0:02:53]} 4. Nf3 {[%clk 0:02:57]}  Nf6 {[%clk 0:02:52]} 5. d4 {[%clk 0:02:56]}  Bg4 {[%clk 0:02:51]} 6. Be2 {[%clk 0:02:55]}  e6 {[%clk 0:02:49]} 7. O-O {[%clk 0:02:51]}  c6 {[%clk 0:02:44]} 8. Be3 {[%clk 0:02:50]}  Bd6 {[%clk 0:02:41]} 9. h3 {[%clk 0:02:47]}  Bxf3 {[%clk 0:02:38]} 10. Bxf3 {[%clk 0:02:40]}  Nbd7 {[%clk 0:02:38]} 11. a3 {[%clk 0:02:38]}  a5 {[%clk 0:02:32]} 12. Ne4 {[%clk 0:02:33]}  Nxe4 {[%clk 0:02:32]} 13. Bxe4 {[%clk 0:02:29]}  Nf6 {[%clk 0:02:24]} 14. Bd3 {[%clk 0:02:21]}  h6 {[%clk 0:02:16]} 15. c4 {[%clk 0:02:11]}  Qc7 {[%clk 0:02:08]} 16. c5 {[%clk 0:02:09]}  Bf4 {[%clk 0:01:56]} 17. b4 {[%clk 0:02:02]}  Nd5 {[%clk 0:01:53]} 18. Bxf4 {[%clk 0:01:58]}  Qxf4 {[%clk 0:01:51]} 19. b5 {[%clk 0:01:56]}  Qxd4 {[%clk 0:01:41]} 20. bxc6 {[%clk 0:01:26]}  bxc6 {[%clk 0:01:42]} 21. Rc1 {[%clk 0:01:19]}  Qf4 {[%clk 0:01:24]} 22. Rc4 {[%clk 0:01:05]}  Qf6 {[%clk 0:01:17]} 23. Qa4 {[%clk 0:00:33]}  Ne7 {[%clk 0:00:58]} 24. Be4 {[%clk 0:00:31]}  O-O {[%clk 0:00:35]} 25. Bxc6 {[%clk 0:00:29]}  Nxc6 {[%clk 0:00:27]} 26. Qxc6 {[%clk 0:00:29]}  Rfc8 {[%clk 0:00:28]} 27. Qa4 {[%clk 0:00:28]}  Rc7 {[%clk 0:00:26]} 28. c6 {[%clk 0:00:27]}  Qe5 {[%clk 0:00:27]} 29. Rb1 {[%clk 0:00:26]}  Rac8 {[%clk 0:00:25]} 30. Rb7 {[%clk 0:00:19]}  Qe1+ {[%clk 0:00:16]} 31. Kh2 {[%clk 0:00:18]}  Qxf2 {[%clk 0:00:17]} 32. Rxc7 {[%clk 0:00:15]}  Rxc7 {[%clk 0:00:17]} 33. Qb5 {[%clk 0:00:15]}  Qa7 {[%clk 0:00:12]} 34. a4 {[%clk 0:00:12]}  Rc8 {[%clk 0:00:10]} 35. Qb7 {[%clk 0:00:09]}  Qa8 {[%clk 0:00:07]} 36. Rc5 {[%clk 0:00:08]}  Kh7 {[%clk 0:00:06]} 37. Qxa8 {[%clk 0:00:07]}  Rxa8 {[%clk 0:00:06]} 38. c7 {[%clk 0:00:07]}  Rc8 {[%clk 0:00:06]} 39. Kg3 {[%clk 0:00:07]}  f6 {[%clk 0:00:06]} 40. Rc6 {[%clk 0:00:06]}  Kg6 {[%clk 0:00:05]} 41. Kf4 {[%clk 0:00:06]}  Kf7 {[%clk 0:00:04]} 42. Rc5 {[%clk 0:00:04]}  Ke7 {[%clk 0:00:04]} 43. Ke4 {[%clk 0:00:02]}  Kd6 {[%clk 0:00:04]} 44. Rxa5 {[%clk 0:00:03]}  Rxc7 {[%clk 0:00:04]} 45. Ra6+ {[%clk 0:00:04]}  Kd7 {[%clk 0:00:05]} 46. Ra5 {[%clk 0:00:04]}  Rc4+ {[%clk 0:00:04]} 47. Kf3 {[%clk 0:00:05]}  g5 {[%clk 0:00:04]} 48. Ra7+ {[%clk 0:00:05]}  Kd6 {[%clk 0:00:05]} 49. Ra6+ {[%clk 0:00:06]}  Kd5 {[%clk 0:00:04]} 50. Ra5+ {[%clk 0:00:06]}  Kd4 {[%clk 0:00:04]} 51. Ra8 {[%clk 0:00:06]}  Rc3+ {[%clk 0:00:03]} 52. Kf2 {[%clk 0:00:05]}  Ra3 {[%clk 0:00:04]} 53. a5 {[%clk 0:00:05]}  Ke4 {[%clk 0:00:04]} 54. a6 {[%clk 0:00:05]}  f5 {[%clk 0:00:05]} 55. a7 {[%clk 0:00:05]}  e5 {[%clk 0:00:06]} 56. Rh8 {[%clk 0:00:05]}  Ra2+ {[%clk 0:00:05]} 57. Kg1 {[%clk 0:00:04]}  Rxa7 {[%clk 0:00:05]} 58. Rxh6 {[%clk 0:00:04]}  Kf4 {[%clk 0:00:06]} 59. Re6 {[%clk 0:00:04]}  e4 {[%clk 0:00:06]} 60. Kf2 {[%clk 0:00:04]}  Ra2+ {[%clk 0:00:05]} 61. Kg1 {[%clk 0:00:04]}  Kg3 {[%clk 0:00:05]} 62. Kf1 {[%clk 0:00:03]}  Ra1+ {[%clk 0:00:05]} 63. Ke2 {[%clk 0:00:04]}  Kxg2 {[%clk 0:00:06]} 64. Rg6 {[%clk 0:00:04]}  Ra2+ {[%clk 0:00:05]} 65. Ke3 {[%clk 0:00:04]}  Ra3+ {[%clk 0:00:05]} 66. Ke2 {[%clk 0:00:04]}  Rg3 {[%clk 0:00:06]} 67. Rf6 {[%clk 0:00:03]}  f4 {[%clk 0:00:06]} 68. Re6 {[%clk 0:00:03]}  e3 {[%clk 0:00:06]} 69. Rf6 {[%clk 0:00:03]}  Kxh3 {[%clk 0:00:06]} 70. Rh6+ {[%clk 0:00:03]}  Kg4 {[%clk 0:00:07]} 71. Kf1 {[%clk 0:00:02]}  Rf3+ {[%clk 0:00:07]} 72. Ke2 {[%clk 0:00:02]}  Rf2+ {[%clk 0:00:08]} 73. Ke1 {[%clk 0:00:02]}  Ra2 {[%clk 0:00:08]} 74. Kf1 {[%clk 0:00:03]}  Kf3 {[%clk 0:00:08]} 75. Rh3+ {[%clk 0:00:02]}  Ke4 {[%clk 0:00:08]} 76. Rh5 {[%clk 0:00:01]}  g4 {[%clk 0:00:08]} 77. Rh4 {[%clk 0:00:02]}  Kf3 {[%clk 0:00:08]} 78. Rh5 {[%clk 0:00:02]}  Ra1# {[%clk 0:00:08]} 0-1


[Site "https://www.chess.com"]

[Event "Titled Tuesday Blitz April 11 Early 2023"]
[White "a-z30"]
[Black "Yurasova, Daria"]
[BlackFideId "34146919"]
[WhiteElo "2305"]
[BlackElo "2134"]
[Result "1-0"]
[Round "04"]
[TimeControl "180+2"]
[Date "2023.04.11"]
[WhiteClock "0:00:34"]
[BlackClock "0:00:01"]

1. d3 {[%clk 0:03:00]}  Nf6 {[%clk 0:02:56]} 2. Nf3 {[%clk 0:03:01]}  d5 {[%clk 0:02:49]} 3. g3 {[%clk 0:03:02]}  c6 {[%clk 0:02:49]} 4. Bg2 {[%clk 0:03:03]}  Bf5 {[%clk 0:02:44]} 5. O-O {[%clk 0:03:04]}  e6 {[%clk 0:02:44]} 6. c4 {[%clk 0:03:04]}  Be7 {[%clk 0:02:44]} 7. cxd5 {[%clk 0:03:04]}  cxd5 {[%clk 0:02:42]} 8. Nc3 {[%clk 0:03:05]}  O-O {[%clk 0:02:42]} 9. Be3 {[%clk 0:02:59]}  Nc6 {[%clk 0:02:41]} 10. Nd4 {[%clk 0:02:58]}  Nxd4 {[%clk 0:02:39]} 11. Bxd4 {[%clk 0:02:58]}  Bg6 {[%clk 0:02:40]} 12. e4 {[%clk 0:02:53]}  dxe4 {[%clk 0:02:26]} 13. dxe4 {[%clk 0:02:52]}  Nd7 {[%clk 0:02:11]} 14. e5 {[%clk 0:02:47]}  b6 {[%clk 0:01:18]} 15. Bxa8 {[%clk 0:02:32]}  Qxa8 {[%clk 0:01:19]} 16. Qe2 {[%clk 0:02:24]}  Bf5 {[%clk 0:00:58]} 17. Rfd1 {[%clk 0:02:18]}  h6 {[%clk 0:00:53]} 18. f3 {[%clk 0:01:55]}  Nb8 {[%clk 0:00:42]} 19. Ne4 {[%clk 0:01:53]}  Nc6 {[%clk 0:00:42]} 20. Nd6 {[%clk 0:01:44]}  Nxd4 {[%clk 0:00:24]} 21. Rxd4 {[%clk 0:01:42]}  Bg6 {[%clk 0:00:20]} 22. Rc1 {[%clk 0:01:40]}  h5 {[%clk 0:00:19]} 23. h4 {[%clk 0:01:39]}  a5 {[%clk 0:00:18]} 24. Kf2 {[%clk 0:01:36]}  Rd8 {[%clk 0:00:14]} 25. Qc4 {[%clk 0:01:33]}  Bf8 {[%clk 0:00:12]} 26. Qc7 {[%clk 0:01:30]}  b5 {[%clk 0:00:09]} 27. Rf4 {[%clk 0:00:58]}  f6 {[%clk 0:00:06]} 28. exf6 {[%clk 0:00:55]}  gxf6 {[%clk 0:00:03]} 29. Rxf6 {[%clk 0:00:51]}  Bh7 {[%clk 0:00:01]} 30. Qf7+ {[%clk 0:00:48]}  Kh8 {[%clk 0:00:01]} 31. Rc7 {[%clk 0:00:35]}  Bg8 {[%clk 0:00:01]} 32. Qxh5+ {[%clk 0:00:34]} 1-0


[Site "https://www.chess.com"]

[Event "Titled Tuesday Blitz April 11 Early 2023"]
[White "Zampronha, Wladimir Camilo"]
[Black "Bas Mas, Jose Joaquin"]
[WhiteFideId "2103087"]
[BlackFideId "22219064"]
[WhiteElo "2176"]
[BlackElo "2233"]
[Result "0-1"]
[Round "04"]
[TimeControl "180+2"]
[Date "2023.04.11"]
[WhiteClock "0:00:13"]
[BlackClock "0:01:46"]

1. e4 {[%clk 0:03:00]}  e6 {[%clk 0:03:00]} 2. d4 {[%clk 0:03:00]}  d5 {[%clk 0:03:01]} 3. Nc3 {[%clk 0:03:00]}  Nf6 {[%clk 0:03:01]} 4. e5 {[%clk 0:03:00]}  Nfd7 {[%clk 0:03:01]} 5. f4 {[%clk 0:03:01]}  c5 {[%clk 0:03:01]} 6. Nf3 {[%clk 0:03:01]}  Nc6 {[%clk 0:03:01]} 7. Be3 {[%clk 0:03:02]}  Be7 {[%clk 0:03:00]} 8. Qd2 {[%clk 0:03:02]}  O-O {[%clk 0:03:00]} 9. dxc5 {[%clk 0:02:59]}  Qa5 {[%clk 0:02:56]} 10. O-O-O {[%clk 0:02:54]}  b6 {[%clk 0:02:55]} 11. Kb1 {[%clk 0:02:29]}  bxc5 {[%clk 0:02:52]} 12. Nb5 {[%clk 0:02:29]}  Qb6 {[%clk 0:02:45]} 13. Nd6 {[%clk 0:02:24]}  Rb8 {[%clk 0:02:41]} 14. c4 {[%clk 0:02:20]}  d4 {[%clk 0:02:39]} 15. Bf2 {[%clk 0:02:20]}  Ba6 {[%clk 0:02:19]} 16. Bd3 {[%clk 0:02:02]}  Nb4 {[%clk 0:02:19]} 17. b3 {[%clk 0:00:51]}  Bxd6 {[%clk 0:02:09]} 18. exd6 {[%clk 0:00:52]}  Qxd6 {[%clk 0:02:09]} 19. Ng5 {[%clk 0:00:48]}  h6 {[%clk 0:01:59]} 20. Ne4 {[%clk 0:00:43]}  Qc7 {[%clk 0:01:58]} 21. g4 {[%clk 0:00:39]}  Bb7 {[%clk 0:01:54]} 22. g5 {[%clk 0:00:28]}  Nxd3 {[%clk 0:01:52]} 23. Qxd3 {[%clk 0:00:29]}  Qxf4 {[%clk 0:01:52]} 24. Nf6+ {[%clk 0:00:14]}  Nxf6 {[%clk 0:01:46]} 25. Bg3 {[%clk 0:00:13]} 0-1


[Site "https://www.chess.com"]

[Event "Titled Tuesday Blitz April 11 Early 2023"]
[White "Aung Thant Zin"]
[Black "Rottenwohrer Suarez, Juan"]
[WhiteFideId "13000063"]
[BlackFideId "32068182"]
[WhiteElo "2278"]
[BlackElo "2174"]
[Result "1-0"]
[Round "04"]
[TimeControl "180+2"]
[Date "2023.04.11"]
[WhiteClock "0:00:25"]
[BlackClock "0:00:03"]

1. c4 {[%clk 0:02:48]}  Nf6 {[%clk 0:02:59]} 2. Nc3 {[%clk 0:02:48]}  g6 {[%clk 0:02:59]} 3. g3 {[%clk 0:02:47]}  Bg7 {[%clk 0:02:57]} 4. Bg2 {[%clk 0:02:47]}  O-O {[%clk 0:02:56]} 5. e4 {[%clk 0:02:47]}  c5 {[%clk 0:02:50]} 6. Nge2 {[%clk 0:02:45]}  Nc6 {[%clk 0:02:50]} 7. O-O {[%clk 0:02:41]}  a6 {[%clk 0:02:51]} 8. d3 {[%clk 0:02:41]}  Rb8 {[%clk 0:02:50]} 9. Be3 {[%clk 0:02:40]}  d6 {[%clk 0:02:50]} 10. h3 {[%clk 0:02:39]}  b5 {[%clk 0:02:48]} 11. cxb5 {[%clk 0:02:28]}  axb5 {[%clk 0:02:48]} 12. f4 {[%clk 0:02:28]}  Nd7 {[%clk 0:02:38]} 13. e5 {[%clk 0:02:13]}  Nd4 {[%clk 0:02:03]} 14. exd6 {[%clk 0:01:49]}  Nxe2+ {[%clk 0:01:57]} 15. Qxe2 {[%clk 0:01:45]}  exd6 {[%clk 0:01:57]} 16. Qf2 {[%clk 0:01:39]}  Re8 {[%clk 0:01:55]} 17. Ne4 {[%clk 0:01:36]}  d5 {[%clk 0:00:29]} 18. Nxc5 {[%clk 0:01:27]}  Rxe3 {[%clk 0:00:27]} 19. Qxe3 {[%clk 0:01:26]}  d4 {[%clk 0:00:27]} 20. Qc1 {[%clk 0:01:23]}  Nb6 {[%clk 0:00:12]} 21. Qd2 {[%clk 0:01:05]}  Nd5 {[%clk 0:00:12]} 22. b4 {[%clk 0:00:47]}  Ne3 {[%clk 0:00:12]} 23. Rf2 {[%clk 0:00:46]}  Bf5 {[%clk 0:00:04]} 24. Kh2 {[%clk 0:00:44]}  Qc8 {[%clk 0:00:03]} 25. g4 {[%clk 0:00:40]}  Bd7 {[%clk 0:00:01]} 26. Rc1 {[%clk 0:00:37]}  Nxg2 {[%clk 0:00:01]} 27. Rxg2 {[%clk 0:00:35]}  Bc6 {[%clk 0:00:01]} 28. Re2 {[%clk 0:00:35]}  Qd8 {[%clk 0:00:01]} 29. Qe1 {[%clk 0:00:33]}  Qd5 {[%clk 0:00:01]} 30. Qf2 {[%clk 0:00:32]}  Ra8 {[%clk 0:00:01]} 31. Ne4 {[%clk 0:00:28]}  Bh6 {[%clk 0:00:02]} 32. Nf6+ {[%clk 0:00:25]}  Kg7 {[%clk 0:00:02]} 33. Nxd5 {[%clk 0:00:26]}  Bxd5 {[%clk 0:00:03]} 34. g5 {[%clk 0:00:25]} 1-0


[Site "https://www.chess.com"]